[Event "39th Muensterland Open 2022"]
[Site "Muenster"]
[Date "2022.10.07"]
[Round "8.10"]
[White "Winterberg, Andreas"]
[Black "Goldschmidt, Christian"]
[Result "0-1"]
[ECO "C56"]
[WhiteElo "1991"]
[BlackElo "2230"]
[Annotator "TA"]
[PlyCount "204"]
[EventDate "2022.10.01"]
[EventType "swiss"]
[EventCountry "GER"]
[SourceTitle "playchess.com"]
[Source "ChessBase"]
[SourceQuality "1"]
[TimeControl "40/5400+30:1800+30"]

{[%evp 22,204,-26,-19,-11,-64,11,1,12,-49,-64,-82,-24,-28,-23,-32,-6,-37,0,-7,0,0,0,0,0,0,0,0,0,0,0,-21,-11,-15,-11,-28,-22,-20,0,-45,-30,-30,-43,-41,-21,-11,-18,-35,-29,-52,-15,-95,-91,-91,-80,-114,-106,-91,-88,-128,-85,-89,-73,-88,-83,-108,-77,-103,-68,-105,-57,-137,-129,-135,-131,-131,-98,-153,-155,-159,-154,-145,-145,-145,-137,-159,-159,-166,-166,-174,-169,-170,-117,-173,-166,-166,-159,-159,-159,-159,-159,-159,-159,-154,-79,-152,-152,-152,-142,-159,-159,-159,-159,-166,-166,-166,-166,-166,-166,-166,-159,-166,-160,-159,-159,-152,-152,-191,-177,-852,-761,-758,-558,-1085,-1066,-1037,-940,-5081,-691,-755,-715,-695,-323,-500,-297,-691,-691,-673,-669,-609,-593,-597,-593,-1079,-593,-708,-415,-414,-213,-347,-332,-279,-184,-264,-184,-311,-195,-184,0,-430,-414,-1011,-854,-29973,-29973,-29972,-29974,-6379,-6379,-29985,-29986,-29986,-29987,-29987,-29988]} 1. e4 {[%emt 0:00:03]} e5 {[%emt 0:01:18]} 2. Nf3 {[%emt 0:00:11]} Nc6 {[%emt 0:00:05]} 3. Bc4 {[%emt 0:00:08]} Nf6 {[%emt 0:00:05][%cal Bg8f6,Bf6e4,Be4d6,Bd6f5][%mdl 32]} 4. d4 {[%emt 0:00:09]} exd4 {[%emt 0:00:11]} 5. e5 {[%emt 0:00:06]} d5 {[%emt 0:00:18]} 6. Bb5 {[%emt 0:00:13]} Ne4 {[%emt 0:00:17]} 7. Nxd4 {[%emt 0:00:17]} Bc5 {[%emt 0:00:13]} 8. Be3 {[%emt 0:00:20]} Bd7 {[%emt 0:00:14]} 9. Bxc6 {[%emt 0:00:40]} bxc6 {[%emt 0:00:08]} 10. O-O {[%emt 0:01:39]} Qe7 {[%emt 0:00:40]} 11. f3 {[%emt 0:04:04]} Nd6 {[%emt 0:00:31]} 12. Bf2 {[%emt 0:03:03]} Nf5 {[%emt 0:06:10] C56: Two Knights: 4 d4 exd4 5 0-0 Nxe4.} (12... Qxe5 $2 13. Re1 Ne4 14. fxe4 dxe4 15. Nc3 $18) 13. Qd3 {[%emt 0:08:20] [#]} (13. c3 $11) 13... Bxd4 $146 {[%emt 1:26:50]} (13... Qxe5 $15 14. Nb3 Bxf2+ 15. Rxf2 O-O) ({Predecessor:} 13... Nxd4 14. Bxd4 O-O 15. c3 Bb6 16. Bxb6 cxb6 17. f4 f6 18. exf6 Rxf6 19. Nd2 Re8 20. Rf2 {½-½ (32) Sedy,P (2137)-Smid,M (2126) Czech Republic 2013}) 14. Bxd4 $11 {[%emt 0:00:09]} Qb4 {[%emt 0:03:52] The position is equal.} 15. Bc3 {[%emt 0:02:55]} (15. Bf2 $11) 15... Qb6+ $1 $15 {[%emt 0:00:34]} 16. Kh1 {[%emt 0:00:30]} d4 {[%emt 0:01:18]} (16... h5 $1 $17 {[%cal Rh5h4] Strongly threatening ...h4.} 17. g3 Rb8) 17. Bd2 $11 {[%emt 0:02:20]} O-O {[%emt 0:06:57]} ({Don't take} 17... Qxb2 18. Na3 Qb8 19. g4 $11) 18. Na3 {[%emt 0:06:53]} Be6 {[%emt 0:09:06]} (18... Qxb2 $2 19. Rfb1 Qb6 20. Rxb6 $18) 19. f4 {[%emt 0:14:55]} c5 {[%emt 0:03:32]} (19... Qxb2 $2 20. Rfb1 Qb6 21. Rxb6 $18) 20. b3 {[%emt 0:01:49]} Rfe8 {[%emt 0:04:58]} 21. Nc4 {[%emt 0:03:35]} Qc6 {[%emt 0:02:29]} 22. Rf2 {[%emt 0:07:30]} h5 {[%emt 0:12:43]} 23. Na5 {[%emt 0:05:58]} Qb6 {[%emt 0:05:35]} 24. Nc4 {[%emt 0:04:04][%cal Ba5c4,Bc4b2,Bb2d3][%mdl 32]} Qa6 {[%emt 0:00:13]} 25. Nb2 {[%emt 0:00:38]} Qc6 {[%emt 0:00:25]} 26. Qf3 {[%emt 0:01:05]} Qxf3 {[%emt 0:06:38]} 27. Rxf3 {[%emt 0:00:09]} Bd5 {[%emt 0:00:11]} 28. Rf2 {[%emt 0:05:20]} h4 {[%emt 0:02:13] Threatening ...h3.} 29. Kg1 {[%emt 0:03:20]} Re6 {[%emt 0:00:08]} 30. Nd3 {[%emt 0:01:36]} (30. c4 $5 {[%cal Rc4d5]} dxc3 31. Bxc3 $11) 30... a5 {[%emt 0:06:11]} 31. c4 {[%emt 0:04:42]} dxc3 $1 {[%emt 0:00:43]} 32. Bxc3 {[%emt 0:00:17]} c4 {[%emt 0:00:05]} 33. bxc4 {[%emt 0:01:04]} ({Don't play} 33. Nc5 Rc6 34. b4 axb4 35. Bxb4 Rb6 $17) 33... Bxc4 {[%emt 0:00:05]} 34. Nb2 {[%emt 0:01:18]} Bd5 {[%emt 0:03:12]} 35. Rd2 {[%emt 0:02:29]} c6 {[%emt 0:01:05]} 36. Nd3 {[%emt 0:01:21]} (36. a4 $11 {keeps the balance.}) 36... Rg6 $17 {[%emt 0:00:54]} 37. a4 {[%emt 0:02:11]} Ne3 {[%emt 0:01:30][%cal Re3g2]} 38. Ne1 {[%emt 0:01:20] [#]} Nxg2 $1 {[%emt 0:02:10][%mdl 512] Black is much more active.} 39. Nxg2 {[%emt 0:00:44]} h3 {[%emt 0:00:11][%mdl 64] Pin} 40. Rb1 {[%emt 0:07:17]} Bxg2 {[%emt 0:01:05]} 41. Kf2 {[%emt 0:31:22]} Rg4 {[%emt 0:33:34]} 42. Ke3 {[%emt 0:00:00]} Bd5 {[%emt 0:00:00]} 43. Rf2 {[%emt 0:00:00]} g6 {[%emt 0:00:00]} 44. Bd4 {[%emt 0:00:00]} Rg2 {[%emt 0:00:00]} 45. Bc5 {[%emt 0:00:00]} Re8 {[%emt 0:00:00]} ({Black should try} 45... Kg7 $17) 46. Kd3 {[%emt 0:00:00]} (46. Bd6 $1 $15) 46... g5 {[%emt 0:00:00]} 47. fxg5 {[%emt 0:00:00]} Rxe5 {[%emt 0:00:00]} 48. Rb8+ {[%emt 0:00:00]} Kh7 {[%emt 0:00:00][%cal Od5c4]} 49. Bd4 {[%emt 0:00:00]} (49. Rf4 $142) 49... Rxf2 {[%emt 0:00:00]} (49... Rexg5 $2 50. Rh8+ Kg6 51. Rf6+ Kg7 52. Rfh6+ f6 53. Bxf6+ Kf7 54. R8h7+ Rg7 55. Bxg7 Rxg7 56. Kc3 $18) 50. Bxe5 {[%emt 0:00:00][%mdl 4096] Endgame KRB-KRB} Ra2 {[%emt 0:00:00]} 51. Rh8+ {[%emt 0:00:00]} Kg6 {[%emt 0:00:00]} 52. Rxh3 {[%emt 0:00:00]} Kxg5 {[%emt 0:00:00]} 53. Bc3 {[%emt 0:00:00]} Rxa4 {[%emt 0:00:00]} 54. Rh8 {[%emt 0:00:00]} Ra2 {[%emt 0:00:00]} 55. h4+ {[%emt 0:00:09]} Kg4 {[%emt 0:18:51]} 56. h5 {[%emt 0:01:53]} Rh2 {[%emt 0:00:00]} (56... a4 $19 57. h6 Rh2) 57. h6 {[%emt 0:01:44]} (57. Bxa5 $17 Rxh5 58. Rxh5 Kxh5 59. Bd8) 57... a4 $19 {[%emt 0:00:00]} 58. h7 {[%emt 0:01:06]} Kf5 {[%emt 0:01:30]} 59. Ra8 {[%emt 0:00:36]} Rxh7 {[%emt 0:00:00] aiming for ...Rh3+.} 60. Rxa4 {[%emt 0:00:00]} Rh3+ {[%emt 0:01:00]} 61. Kd2 {[%emt 0:00:00]} Rh2+ {[%emt 0:01:30]} 62. Ke3 {[%emt 0:00:00]} Ra2 {[%emt 0:00:30]} ({Black should play} 62... Ke6 63. Ra8 Rh3+ 64. Kd2 f6) 63. Rf4+ {[%emt 0:00:00] [#]} ({Better is} 63. Rxa2 Bxa2 64. Kd4) 63... Ke6 $1 $17 {[%emt 0:00:30]} 64. Rf6+ {[%emt 0:01:00]} Ke7 {[%emt 0:00:00]} 65. Rf4 {[%emt 0:00:00]} c5 {[%emt 0:00:00]} 66. Rf5 {[%emt 0:00:00]} Kd6 {[%emt 0:01:30]} 67. Kd3 {[%emt 0:01:30]} Rg2 {[%emt 0:00:00]} 68. Rf6+ {[%emt 0:00:00]} Be6 {[%emt 0:00:00]} 69. Rf3 {[%emt 0:01:00]} Kd5 {[%emt 0:01:30] White must now prevent ...Bg4.} 70. Bf6 {[%emt 0:00:00]} Rh2 {[%emt 0:00:00]} 71. Rf4 {[%emt 0:00:00]} Rh3+ {[%emt 0:01:00]} 72. Kd2 {[%emt 0:00:30]} c4 {[%emt 0:01:30]} 73. Kc2 {[%emt 0:01:00]} Kc6 {[%emt 0:02:00]} 74. Rf2 {[%emt 0:00:00]} Bd5 {[%emt 0:00:00]} 75. Bd4 $2 {[%emt 0:00:00]} (75. Rf4) 75... Be4+ $19 {[%emt 0:00:00]} 76. Kb2 {[%emt 0:00:00]} f5 {[%emt 0:00:00]} 77. Be5 {[%emt 0:00:00]} Rb3+ {[%emt 0:00:00]} 78. Ka2 {[%emt 0:00:00]} Kd5 {[%emt 0:02:30]} 79. Bb2 {[%emt 0:00:00] [#]} Rb7 {[%emt 0:00:00]} (79... Rxb2+ $142 $1 80. Kxb2 Kd4) 80. Bc3 {[%emt 0:04:30]} Bd3 {[%emt 0:00:00] ...Ke4 is the strong threat.} 81. Rf4 {[%emt 0:00:00]} Rh7 {[%emt 0:00:00]} (81... Bb1+ $142 82. Ka1 Rb3) 82. Ka3 {[%emt 0:00:00]} (82. Rd4+ $142 Kc5 83. Rd8) 82... Rh1 {[%emt 0:00:00]} 83. Kb2 $2 {[%emt 0:00:00]} (83. Rd4+ Kc5 84. Rd8) 83... Rb1+ {[%emt 0:00:00]} 84. Ka2 {[%emt 0:00:00]} Rf1 {[%emt 0:00:00]} 85. Rd4+ {[%emt 0:07:00]} Ke6 {[%emt 0:00:00]} 86. Rd8 {[%emt 0:00:00]} f4 {[%emt 0:00:00][%cal Bf5f4,Bf4f3][%mdl 32]} 87. Bd4 {[%emt 0:00:00]} f3 {[%emt 0:00:00]} 88. Rf8 {[%emt 0:00:00]} Be2 {[%emt 0:00:00]} 89. Kb2 {[%emt 0:00:10]} Rd1 {[%emt 0:00:00]} (89... Kd5 $142 90. Kc3 Rc1+ 91. Kb2 Rd1) 90. Bf2 {[%emt 0:00:35]} (90. Kc3 {is the only way for White.}) 90... Rd7 {[%emt 0:00:00]} 91. Rf4 {[%emt 0:00:24]} Rf7 {[%emt 0:00:00]} ({Not} 91... Ke5 $2 92. Rh4 $19) 92. Re4+ {[%emt 0:00:14]} (92. Rh4 {was the only chance.}) 92... Kf5 {[%emt 0:00:00]} 93. Re8 {[%emt 0:00:16]} (93. Rh4 $142) 93... Bd3 {[%emt 0:00:00] And now ...Rh7 would win.} 94. Kc3 {[%emt 0:00:22]} Be2 $2 {[%emt 0:00:00]} (94... Kf4 $19 {Hoping for ...Kg4.} 95. Rh8 Be2) 95. Kd2 $2 {[%emt 0:00:38][%mdl 8192]} (95. Kb2 $1 $11 {and White has nothing to worry.}) 95... Rd7+ {[%emt 0:00:00]} 96. Kc3 {[%emt 0:00:19]} (96. Kc1 $142 Bd1 97. Rf8+ Kg4 98. Be1) 96... Rd3+ {[%emt 0:00:00]} 97. Kc2 {[%emt 0:00:18]} Bd1+ {[%emt 0:00:00]} 98. Kc1 {[%emt 0:00:11]} c3 {[%emt 0:00:00]} 99. Rf8+ {[%emt 0:01:32]} Kg6 {[%emt 0:00:00] ( -> ...Bb3)} 100. Rf4 {[%emt 0:00:39]} Bb3 {[%emt 0:00:00][%csl Gb3][%cal Rd3d1] Black mates.} 101. Rd4 {[%emt 0:00:33]} Rxd4 {[%emt 0:00:00]} 102. Bxd4 {[%emt 0:00:05]} Kf5 {[%emt 0:12:00] Weighted Error Value: White=0.18 (very precise) /Black=0.12 (very precise)} 0-1

[Event "39th Muensterland Open 2022"]
[Site "Muenster"]
[Date "2022.10.08"]
[Round "9.1"]
[White "Scholz, Christian"]
[Black "Koellner, Ruben Gideon"]
[Result "1/2-1/2"]
[ECO "D32"]
[WhiteElo "2332"]
[BlackElo "2403"]
[Annotator "TA"]
[PlyCount "44"]
[EventDate "2022.10.01"]
[EventType "swiss"]
[EventCountry "GER"]
[SourceTitle "playchess.com"]
[Source "ChessBase"]
[SourceQuality "1"]
[TimeControl "40/5400+30:1800+30"]

{[%evp 12,44,38,54,39,44,43,13,21,0,0,-6,-6,-33,-25,-26,-32,-33,-28,-37,-26,-23,-18,-20,-13,-12,-15,-26,0,0,0,0,67,-847,-7]} 1. d4 {[%emt 0:00:06]} d5 {[%emt 0:00:02]} 2. c4 {[%emt 0:00:05]} e6 {[%emt 0:00:03]} 3. Nc3 {[%emt 0:00:03]} c5 {[%emt 0:00:04]} 4. cxd5 {[%emt 0:00:22]} exd5 {[%emt 0:00:05]} 5. Nf3 {[%emt 0:00:08]} Nf6 {[%emt 0:00:05]} 6. Bg5 {[%emt 0:04:08]} Be6 {[%emt 0:00:06]} 7. e3 {[%emt 0:05:31]} c4 {[%emt 0:00:07] D32: Tarrasch Defence: Sidelines and lines without g3.} 8. Be2 {[%emt 0:00:42]} Bb4 {[%emt 0:00:17]} 9. Qa4+ {[%emt 0:03:36]} (9. O-O $5 {[%cal Re3e4]}) 9... Nc6 {[%emt 0:00:07] The position is equal.} 10. Ne5 {[%emt 0:00:29]} Qa5 {[%emt 0:01:50]} 11. Qxa5 {[%emt 0:00:11]} Bxa5 {[%emt 0:00:28]} 12. Nxc6 {[%emt 0:08:27]} bxc6 {[%emt 0:00:11] [#]} 13. f3 $146 {[%emt 0:15:23] Inhibits Ne4.} ({Predecessor:} 13. Bxf6 gxf6 14. O-O-O Bxc3 15. bxc3 Rb8 16. Rd2 Ke7 17. Rb2 Rxb2 18. Kxb2 Rb8+ 19. Ka3 {0-1 (37) Baker,C (2227)-Pantzar,M (2421) Chess.com INT 2021}) 13... Rb8 {[%emt 0:15:35]} 14. O-O-O {[%emt 0:02:11]} Bxc3 {[%emt 0:00:37]} 15. bxc3 {[%emt 0:00:06]} Bf5 {[%emt 0:00:28]} 16. Bxf6 {[%emt 0:00:20]} gxf6 {[%emt 0:27:34]} 17. e4 $1 {[%emt 0:00:54]} Bg6 {[%emt 0:00:13]} 18. h4 {[%emt 0:04:25] [#] Hoping for h5.} h5 {[%emt 0:01:10]} 19. Rd2 {[%emt 0:12:38]} Kd7 {[%emt 0:08:10]} (19... f5 $5 {[%cal Rf5e4]}) 20. Rb2 {[%emt 0:00:40]} Kc7 {[%emt 0:15:53]} 21. Re1 {[%emt 0:01:25]} Rb7 {[%emt 0:27:55]} ({Better is} 21... Rxb2 $11 22. Kxb2 Rb8+ 23. Kc1 Kd6) 22. Rb3 $2 {[%mdl 8192] [#]} Rxb3 $2 {[%emt 0:00:00] Weighted Error Value: White=0.46/Black=0.11 (very precise)} (22... cxb3 $19 23. axb3 Rxb3) 1/2-1/2

[Event "39th Muensterland Open 2022"]
[Site "Muenster"]
[Date "2022.10.08"]
[Round "9.2"]
[White "Pfreundt, Jakob"]
[Black "Gallasch, Robin"]
[Result "1-0"]
[ECO "B00"]
[WhiteElo "2394"]
[BlackElo "2021"]
[Annotator "TA"]
[PlyCount "109"]
[EventDate "2022.10.01"]
[EventType "swiss"]
[EventCountry "GER"]
[SourceTitle "playchess.com"]
[Source "ChessBase"]
[SourceQuality "1"]
[TimeControl "40/5400+30:1800+30"]

{[%evp 9,109,40,62,31,40,45,49,38,95,97,107,88,118,83,103,51,95,54,160,150,150,150,154,154,141,139,166,166,170,166,176,166,166,165,166,166,194,166,205,166,216,169,194,173,229,223,233,218,215,200,279,281,270,273,273,263,322,318,291,291,529,492,529,502,525,507,535,508,550,547,673,629,931,924,860,887,2160,2145,29975,11044,29983,29975,29975,29976,29976,29977,29977,29975,29972,29974,29973,29972,29965,29965,29986,29987,29987,29984,29984,29984,29989,29990]} 1. e4 {[%emt 0:00:11]} b6 {[%emt 0:00:33]} 2. d4 {[%emt 0:00:36]} Bb7 {[%emt 0:00:05]} 3. Bd3 {[%emt 0:01:25]} e6 {[%emt 0:00:17]} 4. Nf3 {[%emt 0:00:26]} d6 {[%emt 0:00:21]} 5. Nc3 {[%emt 0:08:21]} Nd7 {[%emt 0:00:08]} 6. Be3 {[%emt 0:15:58] B00: Queen's Fianchetto Defence, Nimzowitsch Defence.} g6 {[%emt 0:00:47] [#]} 7. h4 $146 {[%emt 0:08:01][%cal Bh2h4,Bh4h5][%mdl 32]} ({Predecessor:} 7. Qd2 Bg7 8. O-O-O a6 9. d5 e5 10. g4 b5 11. h4 Ngf6 12. Nh2 h5 13. Bg5 {½-½ (27) Karthikeyan,P (2421)-Singh,D (2278) Tirupati 2012}) 7... h6 {[%emt 0:01:18]} 8. d5 {[%emt 0:01:20] And now dxe6 would win. White is slightly better.} e5 {[%emt 0:02:20]} ({Black should play} 8... Bg7 $14) 9. h5 $16 {[%emt 0:00:26] [#] Strongly threatening hxg6.} g5 {[%emt 0:19:16]} 10. Nh2 {[%emt 0:07:32][%cal Bf3h2,Bh2f1,Bf1g3][%mdl 32] White is much more active.} Bg7 {[%emt 0:04:16]} 11. g4 {[%emt 0:17:48]} Ne7 {[%emt 0:01:20]} 12. Bc4 {[%emt 0:00:23]} (12. f3 $16) 12... Qc8 {[%emt 0:07:57]} 13. Qd3 {[%emt 0:06:35]} Kf8 {[%emt 0:05:31]} (13... O-O $14) 14. f3 {[%emt 0:01:36]} Bf6 {[%emt 0:00:31]} 15. Nf1 {[%emt 0:01:20]} Kg7 {[%emt 0:00:13]} 16. Ng3 {[%emt 0:00:31]} a6 {[%emt 0:04:17]} 17. a4 {[%emt 0:00:52] Prevents b5.} Qg8 {[%emt 0:08:20]} 18. O-O {[%emt 0:00:41]} Qh7 {[%emt 0:00:53]} 19. Bf2 {[%emt 0:02:02]} Rhd8 {[%emt 0:04:13]} 20. Ra3 {[%emt 0:02:07]} Qh8 {[%emt 0:03:04]} 21. Nd1 {[%emt 0:00:39]} Kh7 {[%emt 0:02:37]} 22. Qe2 {[%emt 0:02:32]} Rdc8 {[%emt 0:01:47]} 23. Ne3 {[%emt 0:00:57]} Qd8 {[%emt 0:01:01]} 24. Rd1 {[%emt 0:00:29]} Qh8 {[%emt 0:01:45]} (24... a5 $142 25. Kg2 Bg7) 25. Ba2 {[%emt 0:05:05]} Qd8 {[%emt 0:01:07]} 26. Kg2 {[%emt 0:00:46]} Qh8 {[%emt 0:00:16]} (26... a5 $142 27. Bc4 Qf8) 27. a5 $18 {[%emt 0:00:31]} Qd8 {[%emt 0:01:29]} 28. b4 {[%emt 0:04:54]} Rcb8 {[%emt 0:08:01]} 29. Ra1 {[%emt 0:02:41]} Nc8 {[%emt 0:02:02]} 30. axb6 {[%emt 0:04:19]} cxb6 {[%emt 0:01:56]} 31. Bc4 {[%emt 0:00:25]} a5 {[%emt 0:00:41]} 32. c3 {[%emt 0:00:24]} axb4 {[%emt 0:01:15]} 33. cxb4 {[%emt 0:00:11]} Rxa3 {[%emt 0:00:15]} 34. Rxa3 {[%emt 0:00:05]} Ra8 $2 {[%emt 0:00:15]} (34... Be7 35. Bb5 Nf6) 35. Rxa8 {[%emt 0:00:41]} Bxa8 {[%emt 0:00:04]} 36. Qa2 {[%emt 0:00:30]} Bb7 {[%emt 0:00:24]} 37. Bb5 {[%emt 0:01:06]} Nb8 {[%emt 0:02:22]} 38. Nc4 {[%emt 0:00:31]} Qc7 {[%emt 0:01:00]} 39. Nf5 {[%emt 0:00:20]} Bd8 {[%emt 0:00:16]} 40. Qa4 {[%emt 0:05:13]} Bf6 {[%emt 0:02:23] [#]} 41. Nfxd6 $1 {[%emt 0:04:39][%mdl 512]} Nxd6 {[%emt 0:34:42]} 42. Bxb6 {[%emt 0:00:08]} Qxc4 {[%emt 0:02:57]} 43. Bxc4 {[%emt 0:00:05]} Nxc4 {[%emt 0:00:06]} 44. Qe8 {[%emt 0:02:56][%csl LRb8,LRf7]} Nxb6 {[%emt 0:01:50]} 45. Qxb8 {[%emt 0:00:12] White mates.} Nxd5 {[%emt 0:00:33]} 46. Qxb7 {[%emt 0:02:40]} Nf4+ {[%emt 0:00:54]} 47. Kf1 {[%emt 0:00:06]} Kg7 {[%emt 0:00:24]} 48. Qd7 {[%emt 0:00:40]} Ne6 {[%emt 0:00:44]} 49. b5 {[%emt 0:00:36][%cal Bb4b5,Bb5b6][%mdl 32]} Bd8 {[%emt 0:00:32]} 50. Qd6 {[%emt 0:01:12]} Bc7 {[%emt 0:00:28]} 51. Qc6 {[%emt 0:00:07]} Bb8 {[%emt 0:01:19]} 52. b6 {[%emt 0:01:10]} Nd4 {[%emt 0:00:57]} 53. Qc8 {[%emt 0:03:31]} Bd6 {[%emt 0:00:09]} 54. Qd7 {[%emt 0:00:20]} Bb8 {[%emt 0:00:20]} 55. Qd8 {[%emt 0:00:10] Weighted Error Value: White=0.10 (very precise) /Black=0.45} 1-0

[Event "39th Muensterland Open 2022"]
[Site "Muenster"]
[Date "2022.10.08"]
[Round "9.3"]
[White "Rott, Georg"]
[Black "Stillger, Bernhard"]
[Result "1/2-1/2"]
[ECO "B51"]
[WhiteElo "2064"]
[BlackElo "2279"]
[Annotator "TA"]
[PlyCount "118"]
[EventDate "2022.10.01"]
[EventType "swiss"]
[EventCountry "GER"]
[SourceTitle "playchess.com"]
[Source "ChessBase"]
[SourceQuality "1"]
[TimeControl "40/5400+30:1800+30"]

{[%evp 9,118,24,22,26,32,26,27,12,31,17,36,30,24,35,43,28,51,29,33,0,19,15,47,22,49,25,57,38,48,36,61,60,70,55,62,29,36,36,19,38,63,23,23,-10,-12,-17,-7,-14,0,0,14,-18,-10,-9,-8,-21,0,-29,-23,-92,-20,-15,-20,-25,-23,-55,-52,-54,-49,-54,-56,-68,-29,-30,-33,-39,-31,-36,-35,-41,-41,-47,-34,-32,-34,-59,-64,-85,-72,-113,-35,-35,-35,-86,-35,-61,-52,-57,-50,-50,-44,-45,-44,-44,-44,-54,0,-45,0,-58,0]} 1. e4 {[%emt 0:00:01]} c5 {[%emt 0:00:05]} 2. Nf3 {[%emt 0:00:06]} d6 {[%emt 0:00:03]} 3. Bb5+ {[%emt 0:00:07]} Nd7 {[%emt 0:00:07]} 4. O-O {[%emt 0:00:11]} a6 {[%emt 0:00:42]} 5. Bd3 {[%emt 0:04:07]} Ngf6 {[%emt 0:06:01]} 6. Re1 {[%emt 0:00:23] B51: Sicilian: Moscow Variation (3 Bb5+) without 3...Bd7.} e5 {[%emt 0:03:35]} 7. c3 {[%emt 0:00:12]} Be7 {[%emt 0:00:21]} 8. Bc2 {[%emt 0:00:15] White has an edge.} O-O {[%emt 0:00:31]} 9. d4 {[%emt 0:00:08]} Re8 {[%emt 0:06:43] [#]} 10. h3 $146 {[%emt 0:10:17]} ({Predecessor:} 10. a4 b6 11. Nbd2 cxd4 12. cxd4 exd4 13. Nxd4 Bb7 14. Nf5 Bf8 15. b3 g6 16. Ng3 {0-1 (32) Bar,R (2471)-Kaspi,A (2435) Jerusalem 2017}) 10... b5 {[%emt 0:02:56]} 11. d5 {[%emt 0:04:05]} c4 {[%emt 0:07:26]} 12. Be3 {[%emt 0:03:10]} Rb8 {[%emt 0:03:13]} 13. Nbd2 {[%emt 0:01:57][%cal Bb1d2,Bd2f1,Bf1g3][%mdl 32]} Qc7 {[%emt 0:00:39]} 14. Nf1 {[%emt 0:06:01]} Nc5 {[%emt 0:01:18]} 15. Ng3 {[%emt 0:01:42]} g6 {[%emt 0:00:53]} 16. Qd2 {[%emt 0:02:30]} Bf8 {[%emt 0:06:38]} 17. Bh6 {[%emt 0:07:53]} (17. b4 Na4 18. Bxa4 bxa4 19. Bh6) 17... Qe7 {[%emt 0:04:09]} 18. Bg5 {[%emt 0:00:46]} Bg7 {[%emt 0:00:16]} 19. b4 {[%emt 0:01:11]} cxb3 {[%emt 0:01:29]} 20. axb3 {[%emt 0:00:07]} Qf8 {[%emt 0:05:43]} 21. b4 {[%emt 0:02:40]} Ncd7 {[%emt 0:00:35]} 22. Bd3 {[%emt 0:00:09] White is much more active. The black rooks are badly placed.} Nb6 {[%emt 0:02:08] Against c4} 23. Nh2 {[%emt 0:04:13]} h6 {[%emt 0:01:52]} 24. Be3 {[%emt 0:00:08]} Kh7 {[%emt 0:01:38]} 25. Bxb6 {[%emt 0:01:32]} Rxb6 {[%emt 0:00:08]} 26. c4 {[%emt 0:00:06]} (26. Reb1) 26... bxc4 {[%emt 0:01:25]} 27. Bxc4 {[%emt 0:00:03]} Qe7 {[%emt 0:05:05]} 28. Ra4 {[%emt 0:00:10]} Qc7 {[%emt 0:01:12]} 29. Bd3 {[%emt 0:00:41]} Qb8 {[%emt 0:01:56]} 30. Rea1 {[%emt 0:02:01]} Bd7 {[%emt 0:05:11]} 31. Rxa6 {[%emt 0:00:44]} Rxb4 {[%emt 0:00:10]} 32. Nhf1 {[%emt 0:00:39]} Rb2 {[%emt 0:02:57]} 33. Qe3 {[%emt 0:00:50]} Rc8 {[%emt 0:00:52]} 34. Rc1 {[%emt 0:05:43]} (34. Nd2) (34. Qe1 $11 {remains equal.}) 34... Rb3 {[%emt 0:02:40]} (34... h5 35. Rxc8 Bxc8) (34... h5 $17 {Threatens to win with ...Bh6.} 35. Rxc8 Bxc8) 35. Rxc8 $11 {[%emt 0:02:24]} Bxc8 {[%emt 0:01:45]} 36. Ra2 {[%emt 0:00:43]} Nd7 {[%emt 0:03:58]} 37. Qe2 {[%emt 0:03:41]} (37. Nd2 Rb2 38. Rxb2 Qxb2 39. Ngf1) 37... Nc5 {[%emt 0:01:28]} 38. Bc2 {[%emt 0:00:29]} Rb2 {[%emt 0:02:03]} 39. Rxb2 {[%emt 0:08:02]} Qxb2 {[%emt 0:00:04]} 40. Ne3 {[%emt 0:00:09]} Bf6 {[%emt 0:05:45]} 41. Nc4 {[%emt 0:30:31][%csl LRb2,LRd6]} Qc1+ {[%emt 0:30:08]} 42. Qd1 {[%emt 0:00:38]} Qxd1+ {[%emt 0:00:26]} 43. Bxd1 {[%emt 0:00:02]} Be7 {[%emt 0:00:11]} 44. Bc2 {[%emt 0:00:30]} Ba6 {[%emt 0:01:30]} 45. Ne3 {[%emt 0:01:22]} Bg5 {[%emt 0:01:39]} 46. Ngf1 {[%emt 0:00:23]} Kg7 {[%emt 0:02:46]} 47. f3 {[%emt 0:00:34]} h5 {[%emt 0:01:40]} 48. Kf2 {[%emt 0:01:03]} h4 {[%emt 0:04:20]} 49. Nd2 {[%emt 0:00:08] [#]} (49. g4) 49... Kf8 {[%emt 0:01:34]} (49... Nd3+ $1 $17 50. Bxd3 Bxd3) 50. Ndc4 $15 {[%emt 0:00:26]} Ke7 {[%emt 0:00:39]} 51. Na5 {[%emt 0:00:24] [#]} (51. Kg1) (51. Bb1 $15) 51... Kd7 {[%emt 0:00:00]} (51... Nd3+ $1 $17 52. Bxd3 Bxd3 53. Nc6+ Kd7) 52. Nec4 {[%emt 0:00:00]} Kc7 {[%emt 0:00:00]} 53. g3 {[%emt 0:00:00]} hxg3+ {[%emt 0:00:00]} 54. Kxg3 {[%emt 0:00:00]} Bf4+ {[%emt 0:00:00]} 55. Kf2 {[%emt 0:00:00]} Bb5 {[%emt 0:00:00]} 56. h4 {[%emt 0:00:00]} Bh6 {[%emt 0:00:00]} 57. Kg3 {[%emt 0:00:00]} Bf4+ {[%emt 0:00:00]} 58. Kf2 {[%emt 0:00:00]} Bh6 {[%emt 0:00:00]} 59. Kg3 $1 {[%emt 0:00:00]} Bf4+ {[%emt 0:01:02] Weighted Error Value: White=0.13 (very precise) /Black=0.15 (very precise)} (59... Na4 $15) 1/2-1/2